[Event "Kvibergspelen 2022"]
[Site "Kviberg Park Hotel & Conference, Krutvagen 2, Gothenburg, Sweden"]
[Date "2022.10.01"]
[Round "5.7"]
[White "Mohammadi, Amir"]
[Black "Lindholm, Gustav"]
[Result "1-0"]
[TimeControl "15 minutes + 5 seconds per move from move one (Round 1 - 4) / 90 minutes + 30 seconds per move from move one (Round 5 - 8)"]
[WhiteFideId "1705890"]
[BlackFideId "1736515"]
[WhiteElo "2294"]
[BlackElo "2026"]

1. e4 {[%clk 01:30:56]} {[%emt 00:00:03]} c5 {[%clk 01:30:51]} {[%emt
00:00:09]} 2. Nc3 {[%clk 01:31:20]} {[%emt 00:00:07]} d6 {[%clk 01:31:17]}
{[%emt 00:00:04]} 3. g3 {[%clk 01:31:45]} {[%emt 00:00:05]} Nc6 {[%clk
01:31:42]} {[%emt 00:00:04]} 4. Bg2 {[%clk 01:32:12]} {[%emt 00:00:04]} g6
{[%clk 01:32:08]} {[%emt 00:00:03]} 5. d3 {[%clk 01:32:39]} {[%emt 00:00:04]}
Bg7 {[%clk 01:32:32]} {[%emt 00:00:07]} 6. Be3 {[%clk 01:33:05]} {[%emt
00:00:03]} Rb8 {[%clk 01:32:59]} {[%emt 00:00:04]} 7. Qd2 {[%clk 01:33:02]}
{[%emt 00:00:32]} b5 {[%clk 01:33:10]} {[%emt 00:00:19]} 8. h3 {[%clk
01:31:55]} {[%emt 00:01:37]} e6 {[%clk 01:32:04]} {[%emt 00:01:37]} 9. Nge2
{[%clk 01:32:04]} {[%emt 00:00:20]} b4 {[%clk 01:31:59]} {[%emt 00:00:35]} 10.
Nd1 {[%clk 01:32:31]} {[%emt 00:00:03]} Nd4 {[%clk 01:29:57]} {[%emt 00:02:32]}
11. O-O {[%clk 01:31:53]} {[%emt 00:01:07]} h5 {[%clk 01:27:00]} {[%emt
00:03:27]} 12. a3 {[%clk 01:28:09]} {[%emt 00:04:14]} a5 {[%clk 01:19:01]}
{[%emt 00:08:30]} 13. Kh2 {[%clk 01:25:56]} {[%emt 00:02:42]} Ne7 {[%clk
01:17:34]} {[%emt 00:01:57]} 14. axb4 {[%clk 01:25:38]} {[%emt 00:00:49]} axb4
{[%clk 01:17:28]} {[%emt 00:00:36]} 15. f4 {[%clk 01:24:23]} {[%emt 00:01:44]}
O-O {[%clk 01:16:48]} {[%emt 00:01:11]} 16. g4 {[%clk 01:24:46]} {[%emt
00:00:06]} hxg4 {[%clk 01:17:15]} {[%emt 00:00:03]} 17. hxg4 {[%clk 01:25:11]}
{[%emt 00:00:05]} f5 {[%clk 01:10:52]} {[%emt 00:06:53]} 18. Bxd4 {[%clk
01:16:01]} {[%emt 00:09:35]} cxd4 {[%clk 01:09:25]} {[%emt 00:02:02]} 19. gxf5
{[%clk 01:00:01]} {[%emt 00:16:30]} gxf5 {[%clk 01:06:00]} {[%emt 00:03:55]} 20.
Rf3 {[%clk 00:58:46]} {[%emt 00:01:45]} e5 {[%clk 00:59:07]} {[%emt 00:07:24]}
21. Nf2 {[%clk 00:52:18]} {[%emt 00:06:57]} Rf6 {[%clk 00:54:07]} {[%emt
00:05:28]} 22. Rg3 {[%clk 00:40:01]} {[%emt 00:12:49]} Rh6+ {[%clk 00:40:06]}
{[%emt 00:14:31]} 23. Kg1 {[%clk 00:30:27]} {[%emt 00:10:04]} Ng6 {[%clk
00:34:00]} {[%emt 00:06:35]} 24. Nh3 {[%clk 00:18:02]} {[%emt 00:12:57]} Qh4
{[%clk 00:20:47]} {[%emt 00:13:42]} 25. Ra7 {[%clk 00:18:25]} {[%emt 00:00:08]}
Kh8 {[%clk 00:14:16]} {[%emt 00:07:00]} 26. Ng5 {[%clk 00:14:59]} {[%emt
00:03:56]} Qh2+ {[%clk 00:11:52]} {[%emt 00:02:54]} 27. Kf2 {[%clk 00:14:06]}
{[%emt 00:01:23]} fxe4 {[%clk 00:09:21]} {[%emt 00:03:02]} 28. dxe4 {[%clk
00:13:47]} {[%emt 00:00:49]} exf4 {[%clk 00:09:12]} {[%emt 00:00:39]} 29. Nf7+
{[%clk 00:06:13]} {[%emt 00:08:04]} Kh7 {[%clk 00:09:32]} {[%emt 00:00:10]} 30.
Nxf4 {[%clk 00:05:20]} {[%emt 00:01:23]} Nxf4 {[%clk 00:09:24]} {[%emt
00:00:38]} 31. Qxf4 {[%clk 00:05:37]} {[%emt 00:00:13]} Rf6 {[%clk 00:06:23]}
{[%emt 00:03:31]} 32. Rxg7+ {[%clk 00:05:58]} {[%emt 00:00:09]} Kxg7 {[%clk
00:06:14]} {[%emt 00:00:39]} 33. Ne5+ {[%clk 00:06:22]} {[%emt 00:00:05]} Rb7
{[%clk 00:01:44]} {[%emt 00:05:01]} 34. Rxb7+ {[%clk 00:06:43]} {[%emt
00:00:09]} Bxb7 {[%clk 00:02:11]} {[%emt 00:00:03]} 35. Qxf6+ {[%clk 00:07:07]}
{[%emt 00:00:06]} Kxf6 {[%clk 00:02:36]} {[%emt 00:00:04]} 36. Ng4+ {[%clk
00:07:32]} {[%emt 00:00:05]} Kg5 {[%clk 00:02:54]} {[%emt 00:00:12]} 37. Nxh2
{[%clk 00:07:56]} {[%emt 00:00:06]} Kf4 {[%clk 00:03:18]} {[%emt 00:00:06]} 38.
b3 {[%clk 00:06:13]} {[%emt 00:02:13]} Ba6 {[%clk 00:01:40]} {[%emt 00:02:08]}
39. Bf1 {[%clk 00:06:05]} {[%emt 00:00:36]} Bb7 {[%clk 00:01:49]} {[%emt
00:00:23]} 40. Bd3 {[%clk 00:06:24]} {[%emt 00:00:10]} d5 {[%clk 00:02:09]}
{[%emt 00:00:11]} 41. e5 {[%clk 00:06:23]} {[%emt 00:00:31]} Kxe5 {[%clk
00:02:13]} {[%emt 00:00:26]} 42. Nf3+ {[%clk 00:06:46]} {[%emt 00:00:06]} Kd6
{[%clk 00:02:37]} {[%emt 00:00:06]} 43. Nxd4 {[%clk 00:07:11]} {[%emt
00:00:05]} Kc5 {[%clk 00:02:53]} {[%emt 00:00:14]} 44. Ke3 {[%clk 00:07:36]}
{[%emt 00:00:05]} Bc8 {[%clk 00:03:13]} {[%emt 00:00:11]} 45. Nf3 {[%clk
00:07:32]} {[%emt 00:00:33]} Bg4 {[%clk 00:03:24]} {[%emt 00:00:20]} 46. Ne5
{[%clk 00:07:16]} {[%emt 00:00:44]} Bd1 {[%clk 00:03:24]} {[%emt 00:00:32]} 47.
Nd7+ {[%clk 00:07:05]} {[%emt 00:00:41]} Kd6 {[%clk 00:03:49]} {[%emt
00:00:05]} 48. Nb8 {[%clk 00:07:04]} {[%emt 00:00:30]} 1-0

[Event "Kvibergspelen 2022"]
[Site "Kviberg Park Hotel & Conference, Krutvagen 2, Gothenburg, Sweden"]
[Date "2022.10.01"]
[Round "5.8"]
[White "Heidarsson, Arnar Milutin"]
[Black "Olsson, William"]
[Result "0-1"]
[TimeControl "15 minutes + 5 seconds per move from move one (Round 1 - 4) / 90 minutes + 30 seconds per move from move one (Round 5 - 8)"]
[BlackTitle "FM"]
[WhiteFideId "2312875"]
[BlackFideId "1741721"]
[WhiteElo "2020"]
[BlackElo "2288"]

1. d4 {[%clk 01:30:57]} {[%emt 00:00:04]} d5 {[%clk 01:30:55]} {[%emt
00:00:04]} 2. c4 {[%clk 01:30:39]} {[%emt 00:00:48]} e6 {[%clk 01:31:21]}
{[%emt 00:00:05]} 3. Nc3 {[%clk 01:30:34]} {[%emt 00:00:34]} c6 {[%clk
01:31:47]} {[%emt 00:00:04]} 4. Nf3 {[%clk 01:30:39]} {[%emt 00:00:26]} Nf6
{[%clk 01:32:10]} {[%emt 00:00:06]} 5. e3 {[%clk 01:30:43]} {[%emt 00:00:27]}
Nbd7 {[%clk 01:32:33]} {[%emt 00:00:08]} 6. Be2 {[%clk 01:29:45]} {[%emt
00:01:28]} dxc4 {[%clk 01:32:54]} {[%emt 00:00:08]} 7. a4 {[%clk 01:29:50]}
{[%emt 00:00:25]} Bb4 {[%emt 00:08:48]} 8. Bxc4 {[%clk 01:28:08]} {[%emt
00:02:06]} O-O {[%clk 01:22:18]} {[%emt 00:02:53]} 9. O-O {[%clk 01:28:27]}
{[%emt 00:00:11]} Qe7 {[%clk 01:17:09]} {[%emt 00:05:39]} 10. Ne5 {[%clk
01:22:42]} {[%emt 00:06:16]} Nd5 {[%clk 01:08:38]} {[%emt 00:09:01]} 11. Qc2
{[%clk 01:19:26]} {[%emt 00:03:46]} Nxe5 {[%clk 01:05:43]} {[%emt 00:03:25]} 12.
dxe5 {[%clk 01:19:48]} {[%emt 00:00:08]} Nxc3 {[%clk 00:57:36]} {[%emt
00:08:37]} 13. bxc3 {[%clk 01:19:53]} {[%emt 00:00:24]} Bc5 {[%clk 00:56:58]}
{[%emt 00:01:09]} 14. Bd3 {[%clk 01:19:17]} {[%emt 00:01:06]} g6 {[%clk
00:54:20]} {[%emt 00:03:08]} 15. f4 {[%clk 01:18:43]} {[%emt 00:01:04]} Bd7
{[%clk 00:49:47]} {[%emt 00:05:03]} 16. Rf3 {[%clk 01:14:17]} {[%emt 00:04:54]}
b5 {[%clk 00:48:22]} {[%emt 00:01:57]} 17. a5 {[%clk 01:10:48]} {[%emt
00:03:59]} a6 {[%clk 00:46:49]} {[%emt 00:02:03]} 18. Bb2 {[%clk 01:10:45]}
{[%emt 00:00:33]} Rfd8 {[%clk 00:43:02]} {[%emt 00:04:16]} 19. g4 {[%clk
01:04:52]} {[%emt 00:06:24]} Be8 {[%clk 00:37:27]} {[%emt 00:06:04]} 20. Rd1
{[%clk 00:58:23]} {[%emt 00:06:59]} Ra7 {[%clk 00:36:30]} {[%emt 00:01:28]} 21.
c4 {[%clk 00:54:34]} {[%emt 00:04:19]} Rb7 {[%clk 00:35:10]} {[%emt 00:01:49]}
22. cxb5 {[%clk 00:54:23]} {[%emt 00:00:41]} cxb5 {[%clk 00:35:24]} {[%emt
00:00:16]} 23. f5 {[%clk 00:50:56]} {[%emt 00:03:58]} Rc7 {[%emt 00:07:18]} 24.
f6 {[%clk 00:46:06]} {[%emt 00:00:03]} Qf8 {[%clk 00:33:32]} {[%emt 00:00:50]}
25. Qe2 {[%clk 00:44:37]} {[%emt 00:02:00]} Qh6 {[%clk 00:31:40]} {[%emt
00:02:22]} 26. Kg2 {[%clk 00:41:52]} {[%emt 00:03:15]} Bc6 {[%clk 00:30:32]}
{[%emt 00:01:37]} 27. e4 {[%clk 00:42:17]} {[%emt 00:00:06]} Qg5 {[%clk
00:28:53]} {[%emt 00:02:09]} 28. Kg3 {[%clk 00:41:55]} {[%emt 00:00:52]} h5
{[%clk 00:28:28]} {[%emt 00:00:54]} 29. h3 {[%clk 00:33:24]} {[%emt 00:09:02]}
Bd4 {[%clk 00:27:35]} {[%emt 00:01:23]} 30. Bc1 {[%clk 00:33:14]} {[%emt
00:00:40]} Bxe5+ {[%clk 00:27:48]} {[%emt 00:00:17]} 31. Kg2 {[%clk 00:33:34]}
{[%emt 00:00:10]} Qh4 {[%clk 00:28:13]} {[%emt 00:00:04]} 32. Bxb5 {[%clk
00:33:21]} {[%emt 00:00:43]} Rxd1 {[%clk 00:26:26]} {[%emt 00:02:18]} 33. Qxd1
{[%clk 00:33:33]} {[%emt 00:00:18]} Bxb5 {[%clk 00:25:34]} {[%emt 00:01:21]} 34.
Qd8+ {[%clk 00:33:52]} {[%emt 00:00:11]} Kh7 {[%clk 00:25:59]} {[%emt
00:00:06]} 35. Qf8 {[%clk 00:33:58]} {[%emt 00:00:24]} Rc2+ {[%clk 00:26:12]}
{[%emt 00:00:16]} 0-1

[Event "Kvibergspelen 2022"]
[Site "Kviberg Park Hotel & Conference, Krutvagen 2, Gothenburg, Sweden"]
[Date "2022.10.01"]
[Round "5.9"]
[White "Dingertz, Erik"]
[Black "Johannesson, Oliver"]
[Result "1-0"]
[TimeControl "15 minutes + 5 seconds per move from move one (Round 1 - 4) / 90 minutes + 30 seconds per move from move one (Round 5 - 8)"]
[BlackTitle "FM"]
[WhiteFideId "1741578"]
[BlackFideId "2305623"]
[WhiteElo "2001"]
[BlackElo "2205"]

1. Nf3 {[%clk 01:30:58]} {[%emt 00:00:01]} d5 {[%clk 01:28:11]} {[%emt
00:02:45]} 2. c4 {[%clk 01:30:53]} {[%emt 00:00:40]} c6 {[%clk 01:28:34]}
{[%emt 00:00:08]} 3. g3 {[%clk 01:31:18]} {[%emt 00:00:05]} Nf6 {[%clk
01:28:59]} {[%emt 00:00:05]} 4. Bg2 {[%clk 01:31:43]} {[%emt 00:00:05]} Bf5
{[%clk 01:29:22]} {[%emt 00:00:07]} 5. Qb3 {[%clk 01:32:00]} {[%emt 00:00:13]}
Qb6 {[%clk 01:28:13]} {[%emt 00:01:39]} 6. Nc3 {[%clk 01:30:26]} {[%emt
00:02:04]} e6 {[%clk 01:26:21]} {[%emt 00:02:22]} 7. d3 {[%clk 01:30:20]}
{[%emt 00:00:36]} Nbd7 {[%clk 01:20:58]} {[%emt 00:05:53]} 8. cxd5 {[%clk
01:30:00]} {[%emt 00:00:50]} Qxb3 {[%clk 01:18:04]} {[%emt 00:03:24]} 9. axb3
{[%clk 01:30:25]} {[%emt 00:00:05]} exd5 {[%clk 01:18:10]} {[%emt 00:00:24]} 10.
O-O {[%clk 01:27:41]} {[%emt 00:03:14]} Be7 {[%clk 01:15:00]} {[%emt 00:03:40]}
11. Nd4 {[%clk 01:26:26]} {[%emt 00:01:45]} Bg6 {[%clk 01:15:03]} {[%emt
00:00:27]} 12. e4 {[%clk 01:26:05]} {[%emt 00:00:51]} dxe4 {[%clk 01:14:29]}
{[%emt 00:01:04]} 13. dxe4 {[%clk 01:26:25]} {[%emt 00:00:10]} O-O {[%clk
01:13:42]} {[%emt 00:01:17]} 14. Re1 {[%clk 01:23:24]} {[%emt 00:03:31]} Bc5
{[%clk 01:12:19]} {[%emt 00:01:54]} 15. Nc2 {[%clk 01:17:57]} {[%emt 00:05:57]}
Rfe8 {[%clk 01:10:20]} {[%emt 00:02:30]} 16. b4 {[%clk 01:06:34]} {[%emt
00:11:53]} Bb6 {[%clk 01:09:15]} {[%emt 00:01:34]} 17. h3 {[%clk 01:03:36]}
{[%emt 00:03:27]} Ne5 {[%clk 01:03:14]} {[%emt 00:06:32]} 18. b5 {[%clk
00:57:11]} {[%emt 00:06:56]} Nd3 {[%clk 00:58:48]} {[%emt 00:04:55]} 19. Re2
{[%clk 00:56:21]} {[%emt 00:01:19]} cxb5 {[%clk 00:57:02]} {[%emt 00:02:17]} 20.
Bg5 {[%clk 00:55:53]} {[%emt 00:00:58]} Nxe4 {[%clk 00:28:26]} {[%emt
00:29:06]} 21. Nxe4 {[%clk 00:51:36]} {[%emt 00:04:47]} Nxf2 {[%clk 00:26:40]}
{[%emt 00:02:16]} 22. Rxf2 {[%clk 00:50:37]} {[%emt 00:01:29]} Bxe4 {[%clk
00:19:46]} {[%emt 00:07:24]} 23. Be3 {[%clk 00:49:48]} {[%emt 00:01:19]} Bxg2
{[%clk 00:16:37]} {[%emt 00:03:39]} 24. Bxb6 {[%clk 00:50:09]} Bxh3 {[%clk
00:16:55]} {[%emt 00:00:21]} 25. Rxa7 {[%clk 00:50:09]} {[%emt 00:00:30]} Rxa7
{[%clk 00:15:43]} {[%emt 00:01:41]} 26. Bxa7 {[%clk 00:50:35]} {[%emt
00:00:05]} Re4 {[%clk 00:14:45]} {[%emt 00:01:27]} 27. Nd4 {[%clk 00:49:41]}
{[%emt 00:01:24]} h5 {[%clk 00:10:46]} {[%emt 00:04:29]} 28. Re2 {[%clk
00:40:42]} {[%emt 00:09:29]} Rxe2 {[%clk 00:08:20]} {[%emt 00:02:56]} 29. Nxe2
{[%clk 00:41:07]} {[%emt 00:00:06]} g5 {[%clk 00:08:27]} {[%emt 00:00:22]} 30.
Bd4 {[%clk 00:38:31]} {[%emt 00:03:06]} Kh7 {[%clk 00:07:29]} {[%emt 00:01:29]}
31. Nc3 {[%clk 00:38:45]} {[%emt 00:00:16]} Bd7 {[%clk 00:07:22]} {[%emt
00:00:35]} 32. Ne4 {[%clk 00:36:53]} {[%emt 00:02:23]} Kg6 {[%clk 00:07:34]}
{[%emt 00:00:18]} 33. Nf6 {[%clk 00:37:03]} {[%emt 00:00:20]} Bc6 {[%clk
00:07:41]} {[%emt 00:00:22]} 34. b4 {[%clk 00:37:03]} {[%emt 00:00:31]} Kf5
{[%clk 00:06:24]} {[%emt 00:01:47]} 35. Kf2 {[%clk 00:34:39]} {[%emt 00:02:55]}
Kg6 {[%clk 00:05:45]} {[%emt 00:01:09]} 36. Ke3 {[%clk 00:33:48]} {[%emt
00:01:21]} Kf5 {[%clk 00:05:45]} {[%emt 00:00:29]} 37. Bc3 {[%clk 00:32:43]}
{[%emt 00:01:35]} Kg6 {[%clk 00:02:24]} {[%emt 00:03:51]} 38. Be5 {[%clk
00:31:21]} {[%emt 00:01:51]} Kf5 {[%clk 00:02:14]} {[%emt 00:00:41]} 39. Bc3
{[%clk 00:27:13]} {[%emt 00:04:38]} Kg6 {[%clk 00:02:37]} {[%emt 00:00:07]} 40.
Kf2 {[%clk 00:26:15]} {[%emt 00:01:27]} Bh1 {[%clk 00:02:24]} {[%emt 00:00:43]}
41. Kg1 {[%clk 00:26:09]} {[%emt 00:00:36]} Bc6 {[%clk 00:02:52]} {[%emt
00:00:03]} 42. Kh2 {[%clk 00:25:03]} {[%emt 00:01:36]} Bf3 {[%clk 00:02:55]}
{[%emt 00:00:26]} 43. Kg1 {[%clk 00:22:59]} {[%emt 00:02:34]} Bc6 {[%clk
00:03:17]} {[%emt 00:00:09]} 44. Kf2 {[%clk 00:23:22]} {[%emt 00:00:07]} Bh1
{[%clk 00:03:40]} {[%emt 00:00:06]} 45. Ke3 {[%clk 00:21:25]} {[%emt 00:02:27]}
Bc6 {[%clk 00:03:06]} {[%emt 00:01:04]} 46. Be5 {[%clk 00:21:32]} {[%emt
00:00:23]} Kf5 {[%clk 00:03:24]} {[%emt 00:00:12]} 47. Kd4 {[%clk 00:21:43]}
{[%emt 00:00:20]} Bf3 {[%clk 00:03:21]} {[%emt 00:00:33]} 48. Ne8 {[%clk
00:21:45]} {[%emt 00:00:28]} Ke6 {[%clk 00:01:43]} {[%emt 00:02:07]} 49. Nc7+
{[%clk 00:15:05]} {[%emt 00:07:10]} Kf5 {[%clk 00:01:25]} {[%emt 00:00:48]} 50.
Nxb5 {[%clk 00:15:29]} {[%emt 00:00:06]} Kg4 {[%clk 00:01:33]} {[%emt
00:00:22]} 51. Ke3 {[%clk 00:15:18]} {[%emt 00:00:42]} Bc6 {[%clk 00:01:40]}
{[%emt 00:00:15]} 52. Nd4 {[%clk 00:15:38]} {[%emt 00:00:18]} Bd7 {[%clk
00:02:10]} {[%emt 00:00:01]} 53. Bf6 {[%clk 00:15:02]} {[%emt 00:01:06]} Kxg3
{[%clk 00:01:43]} {[%emt 00:00:56]} 54. Bxg5 {[%clk 00:15:25]} {[%emt
00:00:06]} h4 {[%clk 00:02:05]} {[%emt 00:00:08]} 55. Ne2 {[%clk 00:13:32]}
{[%emt 00:02:24]} Kg4 {[%clk 00:02:34]} {[%emt 00:00:01]} 56. Bf4 {[%clk
00:13:39]} {[%emt 00:00:22]} Bc6 {[%clk 00:02:28]} {[%emt 00:00:35]} 57. Ng1
{[%clk 00:12:45]} {[%emt 00:01:24]} Bg2 {[%clk 00:02:24]} {[%emt 00:00:35]} 58.
Be5 {[%clk 00:12:35]} {[%emt 00:00:41]} Bc6 {[%clk 00:02:36]} {[%emt 00:00:17]}
59. Kf2 {[%clk 00:12:52]} {[%emt 00:00:13]} Kf5 {[%clk 00:02:48]} {[%emt
00:00:18]} 60. Bd6 {[%clk 00:13:11]} {[%emt 00:00:11]} Kg4 {[%clk 00:03:16]}
{[%emt 00:00:02]} 61. Ne2 {[%clk 00:13:15]} {[%emt 00:00:27]} f5 {[%clk
00:02:35]} {[%emt 00:01:12]} 62. Nf4 {[%clk 00:12:47]} {[%emt 00:00:56]} Be4
{[%clk 00:02:52]} {[%emt 00:00:13]} 63. Kg1 {[%clk 00:12:25]} {[%emt 00:00:51]}
Bc6 {[%clk 00:02:36]} {[%emt 00:00:47]} 64. Kh2 {[%clk 00:12:14]} {[%emt
00:00:41]} Bb5 {[%clk 00:02:08]} {[%emt 00:00:59]} 65. Ng2 {[%clk 00:11:37]}
{[%emt 00:01:06]} Kf3 {[%clk 00:01:05]} {[%emt 00:01:34]} 66. Nxh4+ {[%clk
00:11:54]} {[%emt 00:00:13]} Ke4 {[%clk 00:01:32]} {[%emt 00:00:03]} 67. Kg3
{[%clk 00:12:08]} {[%emt 00:00:15]} Be2 {[%clk 00:01:28]} {[%emt 00:00:32]} 68.
Ng6 {[%clk 00:12:07]} {[%emt 00:00:33]} Bb5 {[%clk 00:01:50]} {[%emt 00:00:09]}
69. Nf4 {[%clk 00:12:20]} {[%emt 00:00:17]} Bc6 {[%clk 00:01:47]} {[%emt
00:00:32]} 70. Kh4 {[%clk 00:12:38]} {[%emt 00:00:12]} Kd4 {[%clk 00:02:01]}
{[%emt 00:00:15]} 71. Kg5 {[%clk 00:13:00]} {[%emt 00:00:10]} Kc4 {[%clk
00:01:11]} {[%emt 00:01:19]} 72. Kxf5 {[%clk 00:13:20]} {[%emt 00:00:10]} Kb5
{[%clk 00:01:26]} {[%emt 00:00:15]} 73. Ke5 {[%clk 00:13:08]} {[%emt 00:00:42]}
Ka6 {[%clk 00:01:13]} {[%emt 00:00:44]} 74. Bc5 {[%clk 00:13:20]} {[%emt
00:00:18]} Bh1 {[%clk 00:00:49]} {[%emt 00:00:54]} 75. Kd6 {[%clk 00:13:42]}
{[%emt 00:00:06]} Bf3 {[%clk 00:00:32]} {[%emt 00:00:48]} 76. Kc7 {[%clk
00:13:48]} {[%emt 00:00:24]} Kb5 {[%clk 00:00:33]} {[%emt 00:00:30]} 77. Ne6
{[%clk 00:13:21]} {[%emt 00:00:56]} Bg2 {[%clk 00:00:39]} {[%emt 00:00:25]} 78.
Kb8 {[%clk 00:13:14]} {[%emt 00:00:36]} Bh1 {[%clk 00:00:35]} {[%emt 00:00:34]}
79. Ka7 {[%clk 00:13:35]} {[%emt 00:00:09]} Kc6 {[%clk 00:00:38]} {[%emt
00:00:27]} 80. Nd4+ {[%clk 00:13:04]} {[%emt 00:01:01]} Kc7 {[%clk 00:00:54]}
{[%emt 00:00:14]} 81. Bb6 {[%clk 00:13:09]} {[%emt 00:00:25]} Kc8 {[%clk
00:01:19]} {[%emt 00:00:05]} 82. Nb5 {[%clk 00:13:30]} {[%emt 00:00:09]} Kd7
{[%clk 00:01:11]} {[%emt 00:00:38]} 83. Nd4 {[%clk 00:13:39]} {[%emt 00:00:21]}
Kc8 {[%clk 00:01:27]} {[%emt 00:00:14]} 84. b5 {[%clk 00:13:34]} {[%emt
00:00:35]} Bg2 {[%clk 00:01:45]} {[%emt 00:00:13]} 85. Bc5 {[%clk 00:13:58]}
{[%emt 00:00:05]} Bf1 {[%clk 00:01:36]} {[%emt 00:00:40]} 86. b6 {[%clk
00:14:02]} {[%emt 00:00:26]} Bg2 {[%clk 00:01:32]} {[%emt 00:00:34]} 87. Nb5
{[%clk 00:14:21]} {[%emt 00:00:11]} Kd7 {[%clk 00:01:14]} {[%emt 00:00:48]} 88.
Nd6 {[%clk 00:14:41]} {[%emt 00:00:08]} Bh1 {[%clk 00:01:29]} {[%emt 00:00:16]}
89. Nxb7 {[%clk 00:15:02]} {[%emt 00:00:10]} Kc8 {[%clk 00:01:55]} {[%emt
00:00:04]} 90. Na5 {[%clk 00:15:26]} {[%emt 00:00:06]} Kd7 {[%clk 00:02:17]}
{[%emt 00:00:07]} 91. Bd4 {[%clk 00:15:42]} {[%emt 00:00:15]} Kc8 {[%clk
00:02:32]} {[%emt 00:00:14]} 92. Ka6 {[%clk 00:15:55]} {[%emt 00:00:17]} Kb8
{[%clk 00:02:31]} {[%emt 00:00:29]} 93. b7 {[%clk 00:15:33]} {[%emt 00:00:55]}
Bxb7+ {[%clk 00:02:51]} {[%emt 00:00:09]} 94. Nxb7 {[%clk 00:16:01]} {[%emt
00:00:03]} Kc7 {[%clk 00:03:14]} {[%emt 00:00:07]} 95. Na5 {[%clk 00:16:11]}
{[%emt 00:00:19]} Kd6 {[%clk 00:03:42]} {[%emt 00:00:03]} 96. Kb5 {[%clk
00:16:28]} {[%emt 00:00:13]} Kd5 {[%clk 00:04:11]} {[%emt 00:00:01]} 97. Bb2
{[%clk 00:16:51]} {[%emt 00:00:06]} Kd6 {[%clk 00:04:34]} {[%emt 00:00:07]} 98.
Nc4+ {[%clk 00:17:18]} {[%emt 00:00:04]} Kd5 {[%clk 00:05:00]} {[%emt
00:00:04]} 99. Ne5 {[%clk 00:17:42]} {[%emt 00:00:06]} Ke4 {[%clk 00:05:22]}
{[%emt 00:00:08]} 100. Kc4 {[%clk 00:18:07]} {[%emt 00:00:05]} Ke3 {[%clk
00:05:44]} {[%emt 00:00:08]} 101. Kd5 {[%clk 00:18:15]} {[%emt 00:00:21]} Kf4
{[%clk 00:06:01]} {[%emt 00:00:13]} 102. Bc1+ {[%clk 00:17:35]} {[%emt
00:01:11]} Kf5 {[%clk 00:06:29]} {[%emt 00:00:02]} 103. Be3 {[%clk 00:17:57]}
{[%emt 00:00:08]} Kf6 {[%clk 00:06:50]} {[%emt 00:00:08]} 104. Nc6 {[%clk
00:18:08]} {[%emt 00:00:19]} Kf5 {[%clk 00:07:13]} {[%emt 00:00:07]} 105. Ne7
{[%clk 00:18:31]} {[%emt 00:00:07]} Kg4 {[%clk 00:07:32]} {[%emt 00:00:11]} 106.
Ke4 {[%clk 00:18:51]} {[%emt 00:00:11]} Kg3 {[%clk 00:08:00]} {[%emt 00:00:02]}
107. Nd5 {[%clk 00:18:05]} {[%emt 00:01:15]} Kg2 {[%clk 00:08:17]} {[%emt
00:00:13]} 108. Kf4 {[%clk 00:18:21]} {[%emt 00:00:13]} Kf1 {[%clk 00:08:36]}
{[%emt 00:00:12]} 109. Kf3 {[%clk 00:18:01]} {[%emt 00:00:51]} Ke1 {[%clk
00:09:04]} {[%emt 00:00:02]} 110. Nc3 {[%clk 00:18:20]} {[%emt 00:00:09]} Kf1
{[%clk 00:09:32]} {[%emt 00:00:03]} 111. Bf4 {[%clk 00:18:18]} {[%emt
00:00:31]} Kg1 {[%clk 00:09:56]} {[%emt 00:00:08]} 112. Ne4 {[%clk 00:18:10]}
{[%emt 00:00:38]} Kh1 {[%clk 00:10:19]} {[%emt 00:00:07]} 113. Nf2+ {[%clk
00:18:33]} {[%emt 00:00:07]} Kg1 {[%clk 00:10:44]} {[%emt 00:00:04]} 114. Bg3
{[%clk 00:19:01]} {[%emt 00:00:02]} Kf1 {[%clk 00:11:09]} {[%emt 00:00:06]} 115.
Bh2 {[%clk 00:19:28]} {[%emt 00:00:03]} Ke1 {[%clk 00:11:33]} {[%emt 00:00:06]}
116. Ne4 {[%clk 00:19:54]} {[%emt 00:00:04]} Kf1 {[%clk 00:11:58]} {[%emt
00:00:05]} 117. Nd2+ {[%clk 00:20:21]} {[%emt 00:00:03]} Ke1 {[%clk 00:12:23]}
{[%emt 00:00:05]} 118. Ke3 {[%clk 00:20:49]} {[%emt 00:00:03]} Kd1 {[%clk
00:12:50]} {[%emt 00:00:03]} 119. Kd3 {[%clk 00:21:13]} {[%emt 00:00:05]} Kc1
{[%clk 00:13:11]} {[%emt 00:00:10]} 120. Nc4 {[%clk 00:21:40]} {[%emt
00:00:03]} Kd1 {[%clk 00:13:33]} {[%emt 00:00:08]} 121. Bg3 {[%clk 00:21:59]}
{[%emt 00:00:10]} Kc1 {[%clk 00:13:54]} {[%emt 00:00:09]} 122. Kc3 {[%clk
00:22:25]} {[%emt 00:00:04]} Kd1 {[%clk 00:14:20]} {[%emt 00:00:05]} 123. Kd3
{[%clk 00:22:46]} {[%emt 00:00:08]} Kc1 {[%clk 00:14:46]} {[%emt 00:00:05]} 124.
Bf2 {[%clk 00:23:14]} {[%emt 00:00:02]} Kd1 {[%clk 00:15:10]} {[%emt 00:00:06]}
125. Nb2+ {[%clk 00:23:39]} {[%emt 00:00:05]} Kc1 {[%clk 00:15:37]} {[%emt
00:00:03]} 126. Kc3 {[%clk 00:24:04]} {[%emt 00:00:05]} Kb1 {[%clk 00:16:05]}
{[%emt 00:00:02]} 127. Kb3 {[%clk 00:24:24]} {[%emt 00:00:09]} Kc1 {[%clk
00:16:29]} {[%emt 00:00:05]} 128. Be3+ {[%clk 00:24:52]} {[%emt 00:00:03]} Kb1
{[%clk 00:16:58]} {[%emt 00:00:02]} 129. Bd2 {[%clk 00:25:08]} {[%emt
00:00:14]} Ka1 {[%clk 00:17:19]} {[%emt 00:00:08]} 130. Nc4 {[%clk 00:25:36]}
{[%emt 00:00:02]} Kb1 {[%clk 00:17:44]} {[%emt 00:00:06]} 131. Na3+ {[%clk
00:26:03]} {[%emt 00:00:03]} Ka1 {[%clk 00:18:09]} {[%emt 00:00:04]} 132. Bc3#
{[%clk 00:26:31]} {[%emt 00:00:03]} 1-0